[Event "GER-ch Youth U12w 2019"]
[Site "Willingen"]
[Date "2019.06.09"]
[Round "2.9"]
[White "Alhassan, Jodi"]
[Black "Petrosyan, Ani"]
[Result "1/2-1/2"]
[ECO "B15"]
[WhiteElo "1108"]
[BlackElo "1378"]
[Annotator "NA"]
[PlyCount "81"]
[EventDate "2019.06.07"]
[EventType "swiss"]
[EventRounds "9"]
[EventCountry "GER"]
[SourceTitle "playchess.com"]
[Source "ChessBase"]
[SourceQuality "1"]
[TimeControl "40/4500+30:900+30"]

1. e4 {[%emt 0:00:00]} c6 {[%emt 0:00:00]} 2. d4 {[%emt 0:00:00]} d5 {[%emt 0:00:00]} 3. Nc3 {[%emt 0:00:00]} g6 {[%emt 0:00:00]} 4. Nf3 {[%emt 0:00:00]} Bg4 {[%emt 0:00:00]} 5. Be3 {[%emt 0:00:00]} Bg7 {[%emt 0:00:00]} 6. Be2 {[%emt 0:00:00]} dxe4 {[%emt 0:00:00]} 7. Nxe4 {[%emt 0:00:00]} Nf6 {[%emt 0:00:00]} 8. Nxf6+ {[%emt 0:00:00]} Bxf6 {[%emt 0:00:00]} 9. h3 {[%emt 0:00:00]} Bxf3 {[%emt 0:00:00]} 10. Bxf3 {[%emt 0:00:00]} O-O {[%emt 0:00:00]} 11. O-O {[%emt 0:00:00]} Qc7 {[%emt 0:00:43]} 12. Bh6 {[%emt 0:00:00]} Rd8 {[%emt 0:01:09]} 13. c3 {[%emt 0:01:47]} c5 {[%emt 0:11:05]} 14. Qb3 {[%emt 0:08:14]} Nc6 {[%emt 0:12:56]} 15. dxc5 {[%emt 0:05:04]} Na5 {[%emt 0:05:26]} 16. Qb4 {[%emt 0:16:47]} Rac8 {[%emt 0:04:10]} 17. Rab1 {[%emt 0:07:28]} Qxc5 {[%emt 0:07:00]} 18. Qxc5 {[%emt 0:00:33]} Rxc5 {[%emt 0:00:10]} 19. Be3 {[%emt 0:00:20]} Rb5 {[%emt 0:02:06]} 20. a4 {[%emt 0:02:49]} Re5 {[%emt 0:02:22]} 21. Bxa7 {[%emt 0:00:53]} Ra8 {[%emt 0:01:38]} 22. Bd4 {[%emt 0:00:41]} Re6 {[%emt 0:00:28]} 23. Bxf6 {[%emt 0:00:32]} Rxf6 {[%emt 0:00:13]} 24. b3 {[%emt 0:05:43]} Rb6 {[%emt 0:01:26]} 25. Rfe1 {[%emt 0:03:29]} e6 {[%emt 0:01:01]} 26. Be2 {[%emt 0:04:05]} Rxb3 {[%emt 0:01:54]} 27. Rxb3 {[%emt 0:00:37]} Nxb3 {[%emt 0:00:02]} 28. Rb1 {[%emt 0:03:03]} Nc5 {[%emt 0:01:00]} 29. Bb5 {[%emt 0:00:31]} Nxa4 {[%emt 0:01:16]} 30. Bxa4 {[%emt 0:00:23]} Rxa4 {[%emt 0:00:04]} 31. Rxb7 {[%emt 0:00:22]} Ra1+ {[%emt 0:00:29]} 32. Kh2 {[%emt 0:00:07]} Rc1 {[%emt 0:00:08]} 33. Rb8+ {[%emt 0:00:24]} Kg7 {[%emt 0:00:13]} 34. Rc8 {[%emt 0:00:10]} Kf6 {[%emt 0:00:07]} 35. Kg3 {[%emt 0:01:13]} Ke5 {[%emt 0:02:13]} 36. f3 {[%emt 0:01:18]} f5 {[%emt 0:03:14]} 37. Rc5+ {[%emt 0:05:11]} Kd6 {[%emt 0:01:04]} 38. Rc8 {[%emt 0:03:31]} Ke5 {[%emt 0:00:18]} 39. Rc5+ {[%emt 0:00:08]} Kd6 {[%emt 0:00:16]} 40. Rc8 {[%emt 0:00:09]} Ke5 {[%emt 0:00:10]} 41. Rc5+ {[%emt 0:15:05] normal} 1/2-1/2

[Event "GER-ch Youth U12w 2019"]
[Site "Willingen"]
[Date "2019.06.10"]
[Round "3.1"]
[White "Zhou, Lepu Coco"]
[Black "Wilmink, Anna"]
[Result "1-0"]
[ECO "B38"]
[WhiteElo "1724"]
[BlackElo "1466"]
[Annotator "NA"]
[PlyCount "63"]
[EventDate "2019.06.07"]
[EventType "swiss"]
[EventRounds "9"]
[EventCountry "GER"]
[SourceTitle "playchess.com"]
[Source "ChessBase"]
[SourceQuality "1"]
[TimeControl "40/4500+30:900+30"]

1. e4 {[%emt 0:00:00]} c5 {[%emt 0:00:00]} 2. Nf3 {[%emt 0:00:00]} Nc6 {[%emt 0:00:00]} 3. d4 {[%emt 0:00:00]} cxd4 {[%emt 0:00:00]} 4. Nxd4 {[%emt 0:00:00]} g6 {[%emt 0:00:00]} 5. c4 {[%emt 0:00:00]} Bg7 {[%emt 0:00:00]} 6. Be3 {[%emt 0:00:00]} Nf6 {[%emt 0:00:00]} 7. Nc3 {[%emt 0:00:00]} O-O {[%emt 0:00:00]} 8. Be2 {[%emt 0:00:00]} d6 {[%emt 0:00:00]} 9. O-O {[%emt 0:00:00]} Bd7 {[%emt 0:00:00]} 10. f3 {[%emt 0:00:00]} Nxd4 {[%emt 0:00:00]} 11. Bxd4 {[%emt 0:00:00]} Bc6 {[%emt 0:00:00]} 12. Qd2 {[%emt 0:00:00]} Nd7 {[%emt 0:00:00]} 13. Bxg7 {[%emt 0:00:00]} Kxg7 {[%emt 0:00:00]} 14. Qd4+ {[%emt 0:00:00]} Kg8 {[%emt 0:00:00]} 15. b4 {[%emt 0:00:00]} b6 {[%emt 0:00:00]} 16. Rac1 {[%emt 0:00:00]} Rc8 {[%emt 0:00:00]} 17. Nd5 {[%emt 0:00:23]} Bxd5 {[%emt 0:00:22]} 18. cxd5 {[%emt 0:00:24]} Rc7 {[%emt 0:03:15]} 19. Bb5 {[%emt 0:03:28]} Nb8 {[%emt 0:09:15]} 20. Qd3 {[%emt 0:05:32]} Qc8 {[%emt 0:01:48]} 21. Qa3 {[%emt 0:03:03]} f6 {[%emt 0:12:01]} 22. Rxc7 {[%emt 0:00:33]} Qxc7 {[%emt 0:00:11]} 23. Rc1 {[%emt 0:00:08]} Qb7 {[%emt 0:00:41]} 24. Bc6 {[%emt 0:02:30]} Qc7 {[%emt 0:01:18]} 25. b5 {[%emt 0:09:48]} Rc8 {[%emt 0:03:11]} 26. Rc4 {[%emt 0:02:33]} a6 {[%emt 0:05:32]} 27. bxa6 {[%emt 0:02:17]} Qa7 {[%emt 0:00:54]} 28. Qe3 {[%emt 0:12:17]} Nxc6 {[%emt 0:05:07]} 29. Rxc6 {[%emt 0:00:34]} Rxc6 {[%emt 0:01:36]} 30. dxc6 {[%emt 0:00:08]} Qxa6 {[%emt 0:03:39]} 31. c7 {[%emt 0:00:32]} Qb7 {[%emt 0:01:19]} 32. Qc3 {[%emt 0:00:13] normal} 1-0

[Event "GER-ch Youth U12w 2019"]
[Site "Willingen"]
[Date "2019.06.10"]
[Round "3.2"]
[White "Adelmeyer, Nelly"]
[Black "Sereda, Yaroslava"]
[Result "0-1"]
[ECO "B18"]
[WhiteElo "1420"]
[BlackElo "1626"]
[Annotator "NA"]
[PlyCount "79"]
[EventDate "2019.06.07"]
[EventType "swiss"]
[EventRounds "9"]
[EventCountry "GER"]
[SourceTitle "playchess.com"]
[Source "ChessBase"]
[SourceQuality "1"]
[TimeControl "40/4500+30:900+30"]

1. e4 {[%emt 0:00:00]} c6 {[%emt 0:00:00]} 2. d4 {[%emt 0:00:00]} d5 {[%emt 0:00:00]} 3. Nc3 {[%emt 0:00:00]} dxe4 {[%emt 0:00:00]} 4. Nxe4 {[%emt 0:00:00]} Bf5 {[%emt 0:00:00]} 5. Ng3 {[%emt 0:00:00]} Bg6 {[%emt 0:00:00]} 6. Nf3 {[%emt 0:00:00]} Nd7 {[%emt 0:00:00]} 7. Bc4 {[%emt 0:00:00]} e6 {[%emt 0:00:00]} 8. Bf4 {[%emt 0:00:00]} Ngf6 {[%emt 0:00:00]} 9. O-O {[%emt 0:00:00]} Nd5 {[%emt 0:00:00]} 10. Bxd5 {[%emt 0:00:00]} cxd5 {[%emt 0:00:00]} 11. c3 {[%emt 0:00:00]} Be7 {[%emt 0:00:00]} 12. Qb3 {[%emt 0:00:00]} Qc8 {[%emt 0:01:12]} 13. Ne5 {[%emt 0:00:00]} Nxe5 {[%emt 0:04:53]} 14. Bxe5 {[%emt 0:00:00]} O-O {[%emt 0:00:38]} 15. Rfe1 {[%emt 0:03:24]} Qd7 {[%emt 0:02:12]} 16. Bf4 {[%emt 0:04:26]} Bd6 {[%emt 0:01:26]} 17. Bxd6 {[%emt 0:01:42]} Qxd6 {[%emt 0:00:08]} 18. Re3 {[%emt 0:03:22]} Rab8 {[%emt 0:05:25]} 19. Rae1 {[%emt 0:09:07]} a6 {[%emt 0:01:23]} 20. Qd1 {[%emt 0:06:16]} b5 {[%emt 0:04:55]} 21. b4 {[%emt 0:09:14]} Rfc8 {[%emt 0:02:58]} 22. Qf3 {[%emt 0:09:08]} a5 {[%emt 0:05:21]} 23. a3 {[%emt 0:01:41]} axb4 {[%emt 0:02:55]} 24. axb4 {[%emt 0:00:08]} Ra8 {[%emt 0:02:21]} 25. Qe2 {[%emt 0:04:42]} Rc4 {[%emt 0:03:28]} 26. Qb2 {[%emt 0:01:46]} Ra4 {[%emt 0:05:04]} 27. Ra1 {[%emt 0:02:17]} Rxa1+ {[%emt 0:13:59]} 28. Qxa1 {[%emt 0:00:05]} Rc8 {[%emt 0:00:25]} 29. h3 {[%emt 0:05:18]} Qc6 {[%emt 0:02:40]} 30. Qf1 {[%emt 0:04:20]} Ra8 {[%emt 0:00:59]} 31. Qe2 {[%emt 0:04:40]} Ra3 {[%emt 0:01:15]} 32. Qb2 {[%emt 0:00:23]} Qa6 {[%emt 0:01:16]} 33. Qe2 {[%emt 0:02:55]} h6 {[%emt 0:05:13]} 34. Qf3 {[%emt 0:03:29]} Qc6 {[%emt 0:02:19]} 35. Kh2 {[%emt 0:02:53]} Qc7 {[%emt 0:01:00]} 36. Kg1 {[%emt 0:02:03]} Ra1+ {[%emt 0:01:08]} 37. Kh2 {[%emt 0:00:07]} Rc1 {[%emt 0:00:39]} 38. Qe2 {[%emt 0:03:21]} Qc6 {[%emt 0:04:21]} 39. Qd2 {[%emt 0:01:14]} Rc2 {[%emt 0:01:42]} 40. Qe1 {[%emt 0:00:18] normal} 0-1

[Event "GER-ch Youth U12w 2019"]
[Site "Willingen"]
[Date "2019.06.10"]
[Round "3.3"]
[White "Braeutigam, Katerina"]
[Black "Keymer, Cecilia"]
[Result "1-0"]
[ECO "C97"]
[WhiteElo "1697"]
[BlackElo "1511"]
[Annotator "NA"]
[PlyCount "40"]
[EventDate "2019.06.07"]
[EventType "swiss"]
[EventRounds "9"]
[EventCountry "GER"]
[SourceTitle "playchess.com"]
[Source "ChessBase"]
[SourceQuality "1"]
[TimeControl "40/4500+30:900+30"]

1. e4 e5 {[%emt 0:00:00]} 2. Nf3 {[%emt 0:00:00]} Nc6 {[%emt 0:00:00]} 3. Bb5 {[%emt 0:00:00]} a6 {[%emt 0:00:00]} 4. Ba4 {[%emt 0:00:00]} Nf6 {[%emt 0:00:00]} 5. O-O {[%emt 0:00:00]} Be7 {[%emt 0:00:00]} 6. Re1 {[%emt 0:00:00]} b5 {[%emt 0:00:00]} 7. Bb3 {[%emt 0:00:00]} O-O {[%emt 0:00:00]} 8. h3 {[%emt 0:00:00]} d6 {[%emt 0:00:00]} 9. c3 {[%emt 0:00:00]} Na5 {[%emt 0:00:00]} 10. Bc2 {[%emt 0:00:00]} c5 {[%emt 0:00:00]} 11. d4 {[%emt 0:00:00]} Qc7 {[%emt 0:01:07]} 12. Nbd2 {[%emt 0:00:00]} Bd7 {[%emt 0:09:36]} 13. Nf1 {[%emt 0:00:00]} Nc4 {[%emt 0:05:09]} 14. b3 {[%emt 0:00:00]} Nb6 {[%emt 0:04:17]} 15. Be3 {[%emt 0:00:00]} Rac8 {[%emt 0:07:28]} 16. Rc1 {[%emt 0:00:00]} Rfe8 {[%emt 0:05:38]} 17. Ng3 {[%emt 0:00:00]} Bf8 {[%emt 0:08:48]} 18. Qd2 {[%emt 0:09:15]} c4 {[%emt 0:10:17]} 19. Bb1 {[%emt 0:10:00]} Bc6 {[%emt 0:05:50]} 20. Bg5 {[%emt 0:11:25]} Nfd7 {[%emt 0:02:53] normal} 1-0

[Event "GER-ch Youth U12w 2019"]
[Site "Willingen"]
[Date "2019.06.10"]
[Round "3.4"]
[White "Roncea, Andrea-Alexandra"]
[Black "Glowiak, Alexandra"]
[Result "1-0"]
[ECO "C50"]
[WhiteElo "1558"]
[BlackElo "1439"]
[Annotator "NA"]
[PlyCount "48"]
[EventDate "2019.06.07"]
[EventType "swiss"]
[EventRounds "9"]
[EventCountry "GER"]
[SourceTitle "playchess.com"]
[Source "ChessBase"]
[SourceQuality "1"]
[TimeControl "40/4500+30:900+30"]

1. e4 {[%emt 0:00:00]} e5 {[%emt 0:00:00]} 2. Nf3 {[%emt 0:00:00]} Nc6 {[%emt 0:00:00]} 3. Bc4 {[%emt 0:00:00]} Bc5 {[%emt 0:00:00]} 4. d3 {[%emt 0:00:00]} Nf6 {[%emt 0:00:00]} 5. Bb3 {[%emt 0:00:00]} d5 {[%emt 0:00:00]} 6. exd5 {[%emt 0:00:00]} Nxd5 {[%emt 0:00:00]} 7. O-O {[%emt 0:00:00]} Bg4 {[%emt 0:00:00]} 8. Re1 {[%emt 0:00:00]} O-O {[%emt 0:00:00]} 9. Nbd2 {[%emt 0:00:00]} Re8 {[%emt 0:00:00]} 10. Ne4 {[%emt 0:00:00]} Bb6 {[%emt 0:00:00]} 11. h3 {[%emt 0:00:00]} Bh5 {[%emt 0:00:00]} 12. Ng3 {[%emt 0:00:00]} Bg6 {[%emt 0:00:00]} 13. a3 {[%emt 0:00:00]} h6 {[%emt 0:00:00]} 14. Ba2 {[%emt 0:00:00]} a6 {[%emt 0:00:00]} 15. Qd2 {[%emt 0:01:54]} Qd7 {[%emt 0:05:06]} 16. b4 {[%emt 0:02:23]} Re7 {[%emt 0:09:47]} 17. Bb2 {[%emt 0:02:38]} Rae8 {[%emt 0:00:52]} 18. Rad1 {[%emt 0:10:58]} Nd4 {[%emt 0:08:04]} 19. Nxd4 {[%emt 0:09:01]} exd4 {[%emt 0:01:31]} 20. Nf1 {[%emt 0:04:54]} Qf5 {[%emt 0:13:18]} 21. Ng3 {[%emt 0:05:15]} Rxe1+ {[%emt 0:12:07]} 22. Rxe1 {[%emt 0:00:14]} Rxe1+ {[%emt 0:00:05]} 23. Qxe1 {[%emt 0:00:27]} Qg5 {[%emt 0:03:42]} 24. Bc1 {[%emt 0:04:08]} Qd8 {normal} 1-0

[Event "GER-ch Youth U12w 2019"]
[Site "Willingen"]
[Date "2019.06.10"]
[Round "3.5"]
[White "Pohle, Saskia"]
[Black "Alhassan, Jodi"]
[Result "1-0"]
[ECO "B90"]
[WhiteElo "1819"]
[BlackElo "1108"]
[Annotator "NA"]
[PlyCount "51"]
[EventDate "2019.06.07"]
[EventType "swiss"]
[EventRounds "9"]
[EventCountry "GER"]
[SourceTitle "playchess.com"]
[Source "ChessBase"]
[SourceQuality "1"]
[TimeControl "40/4500+30:900+30"]

1. e4 {[%emt 0:00:00]} c5 {[%emt 0:00:00]} 2. Nf3 {[%emt 0:00:00]} d6 {[%emt 0:00:00]} 3. d4 {[%emt 0:00:00]} cxd4 {[%emt 0:00:00]} 4. Nxd4 {[%emt 0:00:00]} Nf6 {[%emt 0:00:00]} 5. Nc3 {[%emt 0:00:00]} a6 {[%emt 0:00:00]} 6. h3 {[%emt 0:00:00]} Nc6 {[%emt 0:00:00]} 7. Be3 {[%emt 0:00:00]} e6 {[%emt 0:00:00]} 8. Qd2 {[%emt 0:00:00]} Be7 {[%emt 0:00:00]} 9. g4 {[%emt 0:00:00]} O-O {[%emt 0:00:00]} 10. O-O-O {[%emt 0:00:00]} Qc7 {[%emt 0:03:26]} 11. g5 {[%emt 0:00:00]} Nd7 {[%emt 0:03:11]} 12. f4 {[%emt 0:00:00]} b5 {[%emt 0:07:30]} 13. f5 {[%emt 0:00:00]} Nxd4 {[%emt 0:06:41]} 14. Bxd4 {[%emt 0:00:00]} b4 {[%emt 0:04:31]} 15. Ne2 {[%emt 0:00:00]} exf5 {[%emt 0:01:47]} 16. exf5 {[%emt 0:00:00]} Bd8 {[%emt 0:10:21]} 17. f6 {[%emt 0:01:35]} g6 {[%emt 0:00:55]} 18. h4 {[%emt 0:01:07]} Bb7 {[%emt 0:05:15]} 19. Rh2 {[%emt 0:01:21]} Qa5 {[%emt 0:01:43]} 20. Kb1 {[%emt 0:01:15]} Bd5 {[%emt 0:05:23]} 21. Nc1 {[%emt 0:01:32]} Nb6 {[%emt 0:03:35]} 22. Bxb6 {[%emt 0:00:49]} Bxb6 {[%emt 0:00:12]} 23. Qxd5 {[%emt 0:00:41]} Qxd5 {[%emt 0:00:55]} 24. Rxd5 {[%emt 0:00:09]} Rfd8 {[%emt 0:01:44]} 25. Bg2 {[%emt 0:00:51]} Rab8 {[%emt 0:02:10]} 26. Nd3 {[%emt 0:04:13] normal} 1-0

[Event "GER-ch Youth U12w 2019"]
[Site "Willingen"]
[Date "2019.06.10"]
[Round "3.6"]
[White "Petrosyan, Ani"]
[Black "Ramien, Hannah"]
[Result "1-0"]
[ECO "D37"]
[WhiteElo "1378"]
[BlackElo "1296"]
[Annotator "NA"]
[PlyCount "69"]
[EventDate "2019.06.07"]
[EventType "swiss"]
[EventRounds "9"]
[EventCountry "GER"]
[SourceTitle "playchess.com"]
[Source "ChessBase"]
[SourceQuality "1"]
[TimeControl "40/4500+30:900+30"]

1. c4 {[%emt 0:00:00]} e6 {[%emt 0:00:00]} 2. Nf3 {[%emt 0:00:00]} d5 {[%emt 0:00:00]} 3. d4 {[%emt 0:00:00]} Nf6 {[%emt 0:00:00]} 4. Nc3 {[%emt 0:00:00]} Be7 {[%emt 0:00:00]} 5. cxd5 {[%emt 0:00:00]} Nxd5 {[%emt 0:00:00]} 6. e4 {[%emt 0:00:00]} Nf6 {[%emt 0:00:00]} 7. Be2 {[%emt 0:00:00]} Bb4 {[%emt 0:00:00]} 8. Qc2 {[%emt 0:07:09]} O-O {[%emt 0:04:10]} 9. O-O {[%emt 0:00:47]} b6 {[%emt 0:01:00]} 10. Bg5 {[%emt 0:04:27]} h6 {[%emt 0:01:01]} 11. Bh4 {[%emt 0:01:20]} Bb7 {[%emt 0:01:06]} 12. e5 {[%emt 0:13:07]} g5 {[%emt 0:17:22]} 13. Nxg5 {[%emt 0:14:29]} hxg5 {[%emt 0:01:53]} 14. Bxg5 {[%emt 0:00:42]} Be7 {[%emt 0:01:57]} 15. Bxf6 {[%emt 0:00:45]} Bxf6 {[%emt 0:00:10]} 16. exf6 {[%emt 0:00:10]} Qxf6 {[%emt 0:00:07]} 17. Rad1 {[%emt 0:01:09]} Qg5 {[%emt 0:03:10]} 18. Ne4 {[%emt 0:04:26]} Qg6 {[%emt 0:02:19]} 19. Bd3 {[%emt 0:02:37]} f5 {[%emt 0:00:43]} 20. Ng3 {[%emt 0:01:21]} Qg7 {[%emt 0:02:46]} 21. Rfe1 {[%emt 0:04:12]} Nc6 {[%emt 0:07:06]} 22. Bc4 {[%emt 0:09:36]} Nxd4 {[%emt 0:15:11]} 23. Bxe6+ {[%emt 0:03:26]} Kh8 {[%emt 0:01:11]} 24. Qc3 {[%emt 0:01:54]} c5 {[%emt 0:01:06]} 25. Bc4 {[%emt 0:06:16]} Rae8 {[%emt 0:02:04]} 26. Bf1 {[%emt 0:03:32]} Ba8 {[%emt 0:07:56]} 27. Re3 {[%emt 0:05:11]} Rxe3 {[%emt 0:01:42]} 28. fxe3 {[%emt 0:00:37]} Ne6 {[%emt 0:01:19]} 29. Qxg7+ {[%emt 0:00:09]} Kxg7 {[%emt 0:00:08]} 30. Rd7+ {[%emt 0:00:16]} Rf7 {[%emt 0:02:56]} 31. Rxf7+ {[%emt 0:00:06]} Kxf7 {[%emt 0:00:04]} 32. Nxf5 {[%emt 0:00:05]} Kf6 {[%emt 0:00:51]} 33. Bd3 {[%emt 0:00:47]} Bd5 {[%emt 0:00:40]} 34. a3 {[%emt 0:00:24]} c4 {[%emt 0:00:14]} 35. Bc2 {[%emt 0:00:19] normal} 1-0

[Event "GER-ch Youth U12w 2019"]
[Site "Willingen"]
[Date "2019.06.10"]
[Round "3.7"]
[White "Ulrich, Helena Irene"]
[Black "Peglau, Charis"]
[Result "0-1"]
[ECO "B15"]
[WhiteElo "1514"]
[BlackElo "1514"]
[Annotator "NA"]
[PlyCount "38"]
[EventDate "2019.06.07"]
[EventType "swiss"]
[EventRounds "9"]
[EventCountry "GER"]
[SourceTitle "playchess.com"]
[Source "ChessBase"]
[SourceQuality "1"]
[TimeControl "40/4500+30:900+30"]

1. e4 {[%emt 0:00:00]} c6 {[%emt 0:00:00]} 2. d4 {[%emt 0:00:00]} d5 {[%emt 0:00:00]} 3. Nc3 {[%emt 0:00:00]} dxe4 {[%emt 0:00:00]} 4. Nxe4 {[%emt 0:00:00]} Nf6 {[%emt 0:00:00]} 5. Nxf6+ {[%emt 0:00:00]} exf6 {[%emt 0:00:00]} 6. c3 {[%emt 0:00:00]} Be6 {[%emt 0:00:00]} 7. Bd3 {[%emt 0:00:00]} Bd6 {[%emt 0:00:00]} 8. Nf3 {[%emt 0:00:00]} Nd7 {[%emt 0:00:00]} 9. Be3 {[%emt 0:00:00]} Qc7 {[%emt 0:00:00]} 10. Qc2 {[%emt 0:00:00]} h6 {[%emt 0:00:00]} 11. O-O {[%emt 0:00:00]} g5 {[%emt 0:00:00]} 12. g3 {[%emt 0:10:02]} O-O-O {[%emt 0:00:00]} 13. Rfe1 {[%emt 0:07:30]} h5 {[%emt 0:00:00]} 14. a4 {[%emt 0:08:43]} h4 {[%emt 0:00:00]} 15. b4 {[%emt 0:08:07]} hxg3 {[%emt 0:00:20]} 16. fxg3 {[%emt 0:03:53]} Rh5 {[%emt 0:06:25]} 17. b5 {[%emt 0:10:15]} Rdh8 {[%emt 0:01:08]} 18. Qf2 {[%emt 0:07:04]} Bd5 {[%emt 0:04:34]} 19. Re2 {[%emt 0:03:27]} Bxg3 {[%emt 0:02:28] normal} 0-1

[Event "GER-ch Youth U12w 2019"]
[Site "Willingen"]
[Date "2019.06.10"]
[Round "3.8"]
[White "Sohr, Luna"]
[Black "Fischer, Darja"]
[Result "0-1"]
[ECO "D35"]
[WhiteElo "1357"]
[BlackElo "1480"]
[Annotator "NA"]
[PlyCount "29"]
[EventDate "2019.06.07"]
[EventType "swiss"]
[EventRounds "9"]
[EventCountry "GER"]
[SourceTitle "playchess.com"]
[Source "ChessBase"]
[SourceQuality "1"]
[TimeControl "40/4500+30:900+30"]

1. d4 {[%emt 0:00:00]} d5 {[%emt 0:00:00]} 2. c4 {[%emt 0:00:00]} e6 {[%emt 0:00:00]} 3. Nc3 {[%emt 0:00:00]} Nf6 {[%emt 0:00:00]} 4. cxd5 {[%emt 0:00:00]} exd5 {[%emt 0:00:00]} 5. Bg5 {[%emt 0:00:00]} Be7 {[%emt 0:00:00]} 6. e3 {[%emt 0:00:00]} O-O {[%emt 0:00:00]} 7. Bd3 {[%emt 0:00:00]} b6 {[%emt 0:00:00]} 8. Qc2 {[%emt 0:00:00]} Nbd7 {[%emt 0:00:00]} 9. Nf3 {[%emt 0:00:00]} Bb7 {[%emt 0:00:00]} 10. O-O {[%emt 0:01:57]} h6 {[%emt 0:00:00]} 11. Bh4 {[%emt 0:08:52]} Re8 {[%emt 0:11:24]} 12. Rac1 {[%emt 0:08:45]} c5 {[%emt 0:05:47]} 13. b3 {[%emt 0:09:54]} Rc8 {[%emt 0:06:08]} 14. Nd2 {[%emt 0:07:51]} cxd4 {[%emt 0:09:36]} 15. exd4 {[%emt 0:02:44] normal} 0-1

[Event "GER-ch Youth U12w 2019"]
[Site "Willingen"]
[Date "2019.06.10"]
[Round "3.9"]
[White "Trunz, Michelle"]
[Black "von Beckh, Frieda"]
[Result "1-0"]
[ECO "B24"]
[WhiteElo "1505"]
[BlackElo "1465"]
[Annotator "NA"]
[PlyCount "39"]
[EventDate "2019.06.07"]
[EventType "swiss"]
[EventRounds "9"]
[EventCountry "GER"]
[SourceTitle "playchess.com"]
[Source "ChessBase"]
[SourceQuality "1"]
[TimeControl "40/4500+30:900+30"]

1. e4 {[%emt 0:00:00]} c5 {[%emt 0:00:00]} 2. Nc3 {[%emt 0:00:00]} Nc6 {[%emt 0:00:00]} 3. g3 {[%emt 0:00:00]} g6 {[%emt 0:00:00]} 4. Bg2 {[%emt 0:00:00]} Bg7 {[%emt 0:00:00]} 5. d3 {[%emt 0:00:00]} Nf6 {[%emt 0:00:00]} 6. Be3 {[%emt 0:00:00]} d6 {[%emt 0:00:00]} 7. h3 {[%emt 0:00:00]} O-O {[%emt 0:00:00]} 8. Qd2 {[%emt 0:00:00]} Re8 {[%emt 0:00:00]} 9. Nge2 {[%emt 0:00:00]} Rb8 {[%emt 0:00:00]} 10. f4 {[%emt 0:00:00]} e5 {[%emt 0:00:00]} 11. O-O {[%emt 0:00:00]} b5 {[%emt 0:04:26]} 12. Nd1 {[%emt 0:00:00]} c4 {[%emt 0:12:19]} 13. f5 {[%emt 0:00:00]} d5 {[%emt 0:06:03]} 14. fxg6 {[%emt 0:01:04]} fxg6 {[%emt 0:00:42]} 15. exd5 {[%emt 0:03:48]} Nxd5 {[%emt 0:02:11]} 16. dxc4 {[%emt 0:03:47]} Nxe3 {[%emt 0:03:04]} 17. Qxe3 {[%emt 0:02:14]} Nd4 {[%emt 0:10:01]} 18. Nxd4 {[%emt 0:05:16]} exd4 {[%emt 0:00:47]} 19. Qf4 {[%emt 0:04:18]} Bf5 {[%emt 0:02:46]} 20. cxb5 {[%emt 0:27:59] normal} 1-0

[Event "GER-ch Youth U12w 2019"]
[Site "Willingen"]
[Date "2019.06.11"]
[Round "4.1"]
[White "Braeutigam, Katerina"]
[Black "Zhou, Lepu Coco"]
[Result "0-1"]
[ECO "C96"]
[WhiteElo "1697"]
[BlackElo "1724"]
[Annotator "NA"]
[PlyCount "94"]
[EventDate "2019.06.07"]
[EventType "swiss"]
[EventRounds "9"]
[EventCountry "GER"]
[SourceTitle "playchess.com"]
[Source "ChessBase"]
[SourceQuality "1"]
[TimeControl "40/4500+30:900+30"]

1. e4 {[%emt 0:00:00]} e5 {[%emt 0:00:00]} 2. Nf3 {[%emt 0:00:00]} Nc6 {[%emt 0:00:00]} 3. Bb5 {[%emt 0:00:00]} a6 {[%emt 0:00:00]} 4. Ba4 {[%emt 0:00:00]} Nf6 {[%emt 0:00:00]} 5. O-O {[%emt 0:00:00]} Be7 {[%emt 0:00:00]} 6. Re1 {[%emt 0:00:00]} b5 {[%emt 0:00:00]} 7. Bb3 {[%emt 0:00:00]} d6 {[%emt 0:00:00]} 8. c3 {[%emt 0:00:00]} O-O {[%emt 0:00:00]} 9. h3 {[%emt 0:00:00]} Na5 {[%emt 0:00:00]} 10. Bc2 {[%emt 0:00:00]} c5 {[%emt 0:00:00]} 11. d4 {[%emt 0:00:00]} Nd7 {[%emt 0:00:00]} 12. Nbd2 {[%emt 0:00:00]} exd4 {[%emt 0:00:00]} 13. cxd4 {[%emt 0:00:00]} Nc6 {[%emt 0:00:00]} 14. Nf1 {[%emt 0:00:00]} Bf6 {[%emt 0:00:00]} 15. Be3 {[%emt 0:00:00]} c4 {[%emt 0:00:00]} 16. Ng3 {[%emt 0:00:00]} g6 {[%emt 0:00:00]} 17. Bf4 {[%emt 0:02:17]} Nb6 {[%emt 0:00:00]} 18. Qd2 {[%emt 0:02:43]} Bh8 {[%emt 0:00:00]} 19. Bg5 {[%emt 0:06:13]} f6 {[%emt 0:02:45]} 20. Bh6 {[%emt 0:01:43]} Re8 {[%emt 0:02:25]} 21. Rad1 {[%emt 0:07:18]} a5 {[%emt 0:02:24]} 22. b3 {[%emt 0:01:52]} a4 {[%emt 0:04:21]} 23. bxa4 {[%emt 0:07:20]} Nxa4 {[%emt 0:00:30]} 24. Rb1 {[%emt 0:01:40]} Qb6 {[%emt 0:20:41]} 25. d5 {[%emt 0:13:46]} Nb8 {[%emt 0:06:28]} 26. Qb4 {[%emt 0:00:43]} Qa6 {[%emt 0:10:47]} 27. Qxb5 {[%emt 0:04:24]} Qxb5 {[%emt 0:00:37]} 28. Rxb5 {[%emt 0:00:17]} Bd7 {[%emt 0:02:03]} 29. Rb4 {[%emt 0:01:54]} c3 {[%emt 0:06:40]} 30. Bxa4 {[%emt 0:06:26]} Rxa4 {[%emt 0:00:21]} 31. Rb3 {[%emt 0:07:25]} Rc4 {[%emt 0:03:31]} 32. Bc1 {[%emt 0:05:19]} Bg7 {[%emt 0:03:52]} 33. Re3 {[%emt 0:06:38]} Rec8 {[%emt 0:03:43]} 34. Ne2 {[%emt 0:03:20]} Bh6 {[%emt 0:01:32]} 35. Rd3 {[%emt 0:00:11]} Bxc1 {[%emt 0:00:09]} 36. Nxc1 {[%emt 0:00:09]} Na6 {[%emt 0:00:59]} 37. Re3 {[%emt 0:02:50]} Nb4 {[%emt 0:02:10]} 38. Ne1 {[%emt 0:02:04]} Ba4 {[%emt 0:01:32]} 39. Ra3 {[%emt 0:02:03]} Bc2 {[%emt 0:01:59]} 40. f3 {[%emt 0:02:08]} Bb1 {[%emt 0:00:46]} 41. Kf2 {[%emt 0:17:24]} f5 {[%emt 0:18:45]} 42. Ra4 {[%emt 0:00:00]} Nd3+ {[%emt 0:00:00]} 43. Nexd3 {[%emt 0:00:00]} Rxa4 {[%emt 0:00:00]} 44. Re2 {[%emt 0:00:00]} fxe4 {[%emt 0:00:00]} 45. fxe4 {[%emt 0:00:00]} c2 {[%emt 0:00:00]} 46. Ne1 {[%emt 0:00:00]} Bxa2 {[%emt 0:00:00]} 47. Nxc2 {[%emt 0:00:00]} Bb1 {[%emt 0:00:00] normal} 0-1